Cogmind - Beta 12 @@@ ROGUE MODE // 2023.07.05 @ 20:00:14 Player: Shadow Pussy wanter Result: Destroyed by S-10 Pest with Light Assault Rifle Performance ------------- Evolutions (0) 0 Regions Visited (1) 200 Robots Destroyed (5) 25 Value Destroyed (141) 141 Prototype IDs (0) 0 Alien Tech Used (0) 0 Bonus (0) 0 TOTAL SCORE: 366 Bonus ------- None Cogmind --------- Core Integrity 0/250 Matter 227/300 Energy 250/250 System Corruption 0% Temperature Cool (0) Movement Core (200) Ox3 Location -10/Materials Parts ------- > --- POWER (1) -------- Ion Engine > --- PROPULSION (2) --- (None) > --- UTILITY (2) ------ Small Storage Unit > --- WEAPON (2) ------- Medium Laser > --- INVENTORY (8) ---- Light Treads Light Treads Wheel Compact Wheel Improved Terrain Scanner Peak State ------------ > --- POWER ------------ Light Ion Engine > --- PROPULSION ------- Aluminum Leg Aluminum Leg > --- UTILITY ---------- Small Storage Unit > --- WEAPON ----------- Medium Laser Medium Laser > --- INVENTORY -------- (None) [Rating: 6] Favorites ----------- Power Light Ion Engine Engine Light Ion Engine Propulsion Aluminum Leg Leg Aluminum Leg Utility Small Storage Unit Storage Small Storage Unit Weapon Medium Laser Energy Gun Medium Laser Build | -11 -10 ------- Run | Jun Mat Slots Evolved . | . . Power . | . . Propulsion . | . . Utility . | . . Weapon . | . . Parts Attached 8 | 6 2 Power 2 | 1 1 Engine 2 | 1 1 Core . | . . Reactor . | . . Propulsion 2 | 2 . Treads . | . . Leg 2 | 2 . Wheel . | . . Hover . | . . Flight . | . . Utility 1 | 1 . Device . | . . Storage 1 | 1 . Processor . | . . Hackware . | . . Protection . | . . Artifact . | . . Weapon 3 | 2 1 Energy Gun 3 | 2 1 Energy Cannon . | . . Ballistic Gun . | . . Ballistic Cannon . | . . Launcher . | . . Special Weapon . | . . Impact Weapon . | . . Slashing Weapon . | . . Piercing Weapon . | . . Special Melee Weapon . | . . Unidentified Prototypes . | . . Parts Lost 5 | . 5 Power 1 | . 1 Propulsion 2 | . 2 Utility . | . . Weapon 2 | . 2 Highest Loss Streak 3 | . 3 To Critical Strikes . | . . Average Slot Usage (%) 72 | . 72 Engine 13 | . 13 Leg 20 | . 20 Storage 14 | . 14 Energy Gun 23 | . 23 Naked Turns . | . . Heaviest Build 14 | 12 14 Greatest Support 20 | 20 20 Greatest Overweight (x) 3 | 1 3 Average Overweight (x) . | . . Largest Inventory Capacity 8 | 8 8 Average Capacity 7 | 7 8 Most Carried 7 | 7 7 Average Carried 5 | 4 6 Final Capacity 8 | 8 8 Final Carried 7 | 7 5 Class Distribution -------------------- 100% | Mutant Dominant Class ---------------- Mutant | -10/Materials Resources | -11 -10 ----------- Run | Jun Mat Matter Collected 300 | 260 40 Remotely . | . . Salvage Created 249 | 99 150 Parts 7 | 5 2 Haulers Intercepted . | . . Recyclers Shooed . | . . Parts Field Recycled . | . . Retrieved Matter . | . . Parts Self-Destructed . | . . Prevented . | . . Kills | -11 -10 ------- Run | Jun Mat Combat Hostiles Destroyed 3 | . 3 Guns 2 | . 2 Classes Destroyed 3 | 2 1 Tunneler 1 | 1 . Recycler 1 | 1 . Grunt 3 | . 3 Best Kill Streak 1 | 1 1 Combat Bots Only 1 | . 1 Max Kills in Single Turn 1 | 1 1 Gunslinging . | . . Exploded . | . . Melee . | . . Uniques/NPCs Destroyed . | . . Combat | -11 -10 -------- Run | Jun Mat Damage Taken 747 | . 747 Core 253 | . 253 Absorbed by Shields . | . . Core Remaining (%) 100 | 100 . Volleys Fired 26 | 4 22 Largest 2 | 2 2 Hottest 100 | 100 100 Shots Fired 47 | 8 39 Gun 47 | 8 39 Cannon . | . . Launcher . | . . Special . | . . Kinetic . | . . Thermal 47 | 8 39 Explosive . | . . Electromagnetic . | . . Robot Hit Streak 4 | 3 4 Robot Miss Streak 2 | 2 2 Penetration Max . | . . Secondary Targets . | . . Shots Hit Robots 30 | 5 25 Core Hits 12 | 4 8 Critical Kills . | . . Critical Parts Destroyed . | . . Critical Strikes 1 | . 1 Burn 1 | . 1 Melee Attacks . | . . Impact . | . . Slashing . | . . Piercing . | . . Sneak Attacks . | . . Combat Hostiles . | . . Follow-up Attacks . | . . Damage Inflicted 380 | 64 316 Guns 374 | 63 311 Cannons . | . . Explosions . | . . Melee . | . . Ramming 6 | 1 5 Kinetic . | . . Thermal 374 | 63 311 Explosive . | . . Electromagnetic . | . . Impact . | . . Slashing . | . . Piercing . | . . Highest Corruption . | . . Average Corruption . | . . Corruption Purged . | . . Corruption Blocked . | . . Overload Shots . | . . Overflow Damage . | . . Projectiles . | . . Explosions . | . . Melee . | . . Knockbacks . | . . Impact . | . . Kinetic . | . . Secondary . | . . Self-Inflicted Damage . | . . Shots . | . . Rammed . | . . Targets Rammed 7 | 1 6 Kicked 7 | 1 6 Crushed . | . . Highest Temperature 517 | 117 517 Average Temperature 217 | 50 247 Received Heat Transfer 447 | . 447 Effects 7 | . 7 Shutdowns 2 | . 2 Interference 1 | . 1 Matter Decay 2 | . 2 Short Circuit 1 | . 1 Damage (major) 1 | . 1 Siege Activations . | . . Robots Corrupted . | . . Combat Hostiles . | . . Parts Fried . | . . Impact Corruptions . | . . Robots Melted 1 | . 1 Combat Hostiles 1 | . 1 Parts Melted 5 | . 5 Heat Transferred 1184 | 185 999 Parts Sabotaged . | . . Parts Stolen . | . . Parts Stripped . | . . Power Chain Reactions . | . . Missiles Intercepted . | . . Alert | -11 -10 ------- Run | Jun Mat Peak Influence 76 | 10 76 Initial 6 | . 6 Average 26 | 3 40 Maximum Alert Level . | . . Low Security (%) 100 | 100 100 Level 1 . | . . Level 2 . | . . Level 3 . | . . Level 4 . | . . Level 5 . | . . High Security . | . . Max Security . | . . Squads Dispatched 2 | . 2 Investigation . | . . Extermination . | . . Reinforcement 2 | . 2 Assault . | . . Garrison . | . . Intercept . | . . Searches Triggered . | . . Construction Impeded . | . . Haulers Reinforced . | . . Active Scanning Responses . | . . Cargo Convoy Interrupts . | . . Stealth | -11 -10 --------- Run | Jun Mat Distress Signals 3 | . 3 Communications Jammed . | . . Distress Signals . | . . Times Spotted 12 | . 12 Peak Tracking Total 8 | . 8 Tactical Retreats . | . . Traps | -11 -10 ------- Run | Jun Mat Traps Triggered . | . . Indirectly . | . . Trap Hack Attempts . | . . Triggered . | . . Disarmed . | . . Reprogrammed . | . . Reused . | . . Traps Extracted . | . . Installed . | . . Triggered . | . . Machines | -11 -10 ---------- Run | Jun Mat Machines Disabled . | . . Max in Single Turn . | . . Machines Repaired . | . . Machines Sabotaged . | . . Overloaded Fab Kills . | . . Hacking | -11 -10 --------- Run | Jun Mat Machines Accessed . | . . Terminals . | . . Fabricators . | . . Repair Stations . | . . Recycling Units . | . . Scanalyzers . | . . Garrison Access . | . . Total Hacks . | . . Successful . | . . Failed . | . . Catastrophic . | . . Database Lockouts . | . . Manual . | . . Terminals . | . . Fabricators . | . . Repair Stations . | . . Recycling Units . | . . Scanalyzers . | . . Garrison Access . | . . Terminal Hacks . | . . Fabricator Hacks . | . . Repair Station Hacks . | . . Recycling Unit Hacks . | . . Scanalyzer . | . . Garrison Access Hacks . | . . Unauthorized Hacks . | . . Terminals . | . . Fabricators . | . . Repair Stations . | . . Recycling Units . | . . Scanalyzers . | . . Garrison Access . | . . Data Cores Recovered . | . . Used . | . . Hacking Detections . | . . Full Trace Events . | . . Feedback Events . | . . Feedback Blocked . | . . Robot Schematics Acquired . | . . Robots Built . | . . Authchips . | . . Time . | . . Total Robot Build Rating . | . . Part Schematics Acquired . | . . Parts Built . | . . Authchips . | . . Time . | . . Total Part Build Rating . | . . Parts Repaired . | . . Time . | . . Parts Recycled . | . . Recycled Matter . | . . Retrieved Matter . | . . Retrieved Components . | . . Parts Scanalyzed . | . . Part Schematics Acquired . | . . Parts Damaged . | . . Bothacking | -11 -10 ------------ Run | Jun Mat Used RIF Installer . | . . Robots Hacked . | . . Non-combat . | . . Combat . | . . Robot Hacks Applied . | . . Relay Couplers Released . | . . Fabnet Peak Effective % . | . . Robots Rewired . | . . Allies Hacked . | . . Hacks Repelled . | . . Allies | -11 -10 -------- Run | Jun Mat Total Allies . | . . Largest Group . | . . Highest-Rated Group . | . . Highest-Rated Ally . | . . Total Orders . | . . Ally Attacks . | . . Total Damage . | . . Kills . | . . Allies Corrupted . | . . Allies Melted . | . . Intel | -11 -10 ------- Run | Jun Mat Robot Analysis Total . | . . Derelict Logs Recovered . | . . Drone Launches . | . . Drone Recoveries . | . . Exploration | -11 -10 ------------- Run | Jun Mat Turns Passed 271 | 105 166 Spaces Moved 119 | 65 54 Core 13 | 11 2 Treads . | . . Legs 106 | 54 52 Wheels . | . . Hover . | . . Flight . | . . Fastest Speed 50 | 50 120 Average Speed 128 | 112 148 Slowest Speed 200 | 120 200 Overloaded Moves . | . . Propulsion Burnouts . | . . Robots Hopped . | . . Cave-ins Triggered . | . . Exploration Rate (%) 11 | 4 18 Regions Visited 1 Branch Regions . Pre-discovered Areas . | . . Known Exits Taken . | . . Unknown Exits Taken 1 | 1 . Scrap Searched . | . . Spaces Dug . | . . Terrain Destroyed . | . . Melee . | . . Projectile . | . . AOE . | . . Terrain Rammed . | . . Walls Destroyed . | . . Machines Disabled . | . . Actions | -11 -10 --------- Run | Jun Mat Total 182 | 86 96 Wait 16 | 4 12 Move 119 | 65 54 Hop . | . . Pick Up 7 | 7 . Fast Attach 6 | 6 . Attach 2 | . 2 Detach . | . . Swap . | . . Drop . | . . Fire 26 | 4 22 Melee . | . . Ram . | . . Kick 6 | . 6 Crush . | . . Escape Stasis . | . . Rewire . | . . Trap . | . . Miscellaneous . | . . Route ------- -11/Junkyard -10/Materials History --------- Turn | Location | Event 32 | -11/Junkyard | Discovered new exit (range 16) 106 | -11/Junkyard | Entered Materials 215 | -10/Materials | Core integrity fell below 50% 257 | -10/Materials | Lost 3 parts (1n2w) 266 | -10/Materials | Core integrity fell below 20% 272 | -10/Materials | Destroyed by S-10 Pest with Light Assault Rifle Last Messages --------------- 00218_ Med. Laser destroyed. 00220_ G-47 Trooper critical meltdown. 00220_ Imp. Heat Sink melted. 00220_ Particle Gun melted. 00220_ Aluminum Leg melted. 00223_ Power failure, Ion Engine shutdown. 00223_ Med. Laser broken. 00223_ Overheating: Short circuit. 00226_ Med. Laser destroyed. 00227_ Kicked G-34 Mercenary out of the way. 00229_ Acquired 40 matter. 00229_ R-06 Scavenger collects Aluminum Leg. 00234_ Power failure, Ion Engine shutdown. 00239_ Kicked R-06 Scavenger. 00255_ K-01 Serf collects debris. 00260_ W-16 Scout sends out distress signal. 00264_ K-01 Serf collects debris. 00266_ W-16 Scout sends out distress signal. 00268_ Aluminum Leg destroyed. 00268_ K-01 Serf collects debris. Map ----- +----------------------------------------------------+ | ???????????????????????????????????????????????? | | ???????????????????????????????????????????????? | | ???????????????????????????????????????????????? | | ???????????????????????????????????????????????? | | ???????????????????????????????????????????????? | | ???????????????????????????????????????????????? | | ???????????????????????????????????????????????? | | ???????????????????????????????????????????????? | | ???????????????????????????????????????????????? | | ???????????????????????????????????????????????? | | ???????????????????????????????????????????????? | | ???????????????????????????????????????????????? | | ???????????????????????????????????????????????? | | ??????????????????####?????????????????????????? | | ?????????????????? ?????????????????????????? | | ??????????????????? ?????????????????????????? | | ??????????????????? ????????????? ?????????? | | ???????????????????# ???????????? ????????? | | ???????????????????# ???????????# #????????? | | ???????????????????# ???????????# #????????? | | ???????????????????# ???????????# #????????? | | ???????????????????# ???????????# ####?????? | | ??????????????????## ##?????????# ??????? | | ???????????#####+## ##+###????# ???????? | | ??????????# #????# ????????? | | ??????????# @ w k#????# #????????? | | ?????????????""" s #????# #????????? | | ?????????????"T" gsgs ##g #????# #????????? | | ??????????? ####### ###### #????????? | | ??????????#w !?# ! + #????????? | | ??????????# ???# # #????????? | | ??????????# ????# """ # #????##### | | ??????????# ??????# """?## ##### ##### | | ???????????????????# """??# #???# | | ???????????????????# ???# #???# | | ???????????????????? ???# #???# | | ????????????????#########?# #???# ###+### | | ????????????????# ### ###?# ## ??#### | | ????????????????# # #?# ## #????? | | ????????????????# %=#% #?# ## #????? | | ????????????????# %+ T #?###### #????? | | ????????????????# %# #??????# #????? | | ????????????????# """ # #??????# #????? | | ????????????????# """"" #######??????# #????? | | ????????????????# """"" #????????????# #????? | | ????????????????# """"" #????????????# #????? | | ?????????????????? """ ?????????????######????? | | ???????????????????? ???????????????????????? | | ?????????????????????###???????????????????????? | | ???????????????????????????????????????????????? | +----------------------------------------------------+ Best States ------------- Heat Dissipation 25 Energy Generation 10 Energy Capacity 250 Matter Stores 300 Matter Capacity 300 Sight Range 16 Terrain Scan Density 10 Evasion (%) 55 Item Schematics ----------------- None Robot Schematics ------------------ None Fabricated ------------ Nothing Alien Tech Used ----------------- None Achievements -------------- None Challenges ------------ None Game ------ Seed TransmissionResetSink Manual? 0 Play Time 00:02:42 Cumulative 151.0 hours Start 2023.07.05 @ 19:58:38 End 2023.07.05 @ 20:00:14 Sessions 1 Manual Loads 0 Difficulty Rogue Special Mode None Game No. 204 Rogue 204 Adventurer 0 Explorer 0 Win Type - Total 3 Types 2/0/0/1/0/0/0/0/0 Lore% 62 Gallery% 71 Achievement% 54 Wizard Run 0 Options --------- ASCII 0 Keyboard 0 Movement Numpad Keybinds 0 Fullscreen 1 Font 18/SmallcapsGlow Map View 76x50 Tactical HUD 1 Map Filters NONE Filters NONE Steam 1 RUN: 618c206c-0def-4076-a4b1-57b6ef83071b